bitfinex/quotes_SOLUSD_20260211
["timestamp","ask_amount","ask_price","bid_price","bid_amount"]
[1770824796010,0.49683996,80.154,80.085,34.98]
[1770824796209,0.49683996,80.149,80.086,12.48657692]
[1770824796820,0.49683996,80.149,80.075,12.48816503]
[1770824797011,0.49683996,80.149,80.075,12.68816503]
[1770824797527,0.49683996,80.149,80.076,0.2]
[1770824797706,4.61729252,80.14,80.077,12.48798031]
[1770824797912,0.49683996,80.139,80.077,12.48798031]
[1770824798308,4.61729252,80.135,80.077,12.68798031]
[1770824798507,0.49683996,80.134,80.07,0.2]
[1770824798709,4.61729252,80.135,80.07,0.2]
[1770824798710,0.49683996,80.123,80.07,0.2]
[1770824798918,0.49683996,80.118,80.071,0.2]
[1770824799621,0.49683996,80.118,80.07,0.2]
[1770824799924,0.49683996,80.113,80.06,0.2]
[1770824800328,35.96,80.112,80.06,0.2]
[1770824800508,0.49683996,80.111,80.061,12.49047601]
[1770824800709,0.49683996,80.111,80.06,0.2]
[1770824801127,0.49683996,80.111,80.061,12.49047601]
[1770824801407,0.49683996,80.111,80.06,0.2]
[1770824801608,0.49683996,80.111,80.06,12.89062387]
[1770824802034,0.49683996,80.109,80.061,0.2]
[1770824802746,0.49683996,80.109,80.061,12.69047601]
[1770824802906,0.49683996,80.109,80.061,0.2]
[1770824803112,0.49683996,80.109,80.06,0.2]
[1770824803328,0.49683996,80.109,80.061,0.2]
[1770824803528,0.49683996,80.109,80.062,0.2]
[1770824803921,0.49683996,80.109,80.06,0.2]
[1770824803922,0.49683996,80.107,80.06,0.2]
[1770824804126,0.49683996,80.107,80.062,0.2]
[1770824804545,0.49683996,80.107,80.06,0.2]
[1770824804834,0.49683996,80.107,80.062,0.2]
[1770824806040,0.49683996,80.105,80.062,0.2]
[1770824806444,43.69210795,80.106,80.061,0.2]
[1770824806734,0.49683996,80.105,80.061,0.2]
[1770824807033,0.49683996,80.102,80.06,0.2]
[1770824807622,0.49683996,80.102,80.031,0.2]
[1770824807939,0.49683996,80.097,80.031,0.2]
[1770824808316,0.49683996,80.092,80.03,0.2]
[1770824809348,0.49683996,80.087,80.03,0.2]
[1770824809515,0.49683996,80.082,80.03,0.2]
[1770824810024,0.49683996,80.077,80.03,0.2]
[1770824810230,0.49683996,80.07,80.03,0.2]
[1770824810427,0.45139271,80.068,80.03,0.2]
[1770824811218,0.45139271,80.065,80.02,0.2]
[1770824811445,0.45139271,80.06,80.02,0.2]
[1770824811646,36.2,80.059,80.021,0.2]
[1770824812016,0.45139271,80.058,80.02,0.2]
[1770824812240,12.49094406,80.058,80.022,0.2]
[1770824812548,12.49094406,80.058,80.023,12.69640728]
[1770824812842,12.49094406,80.058,80.023,12.49640728]
[1770824813043,43.71830422,80.058,80.024,0.2]
[1770824813238,12.49094406,80.058,80.024,0.2]
[1770824813467,0.45139271,80.073,80.024,0.2]
[1770824813620,36.24,80.072,80.024,0.2]
[1770824813827,0.45139271,80.071,80.022,43.43790635]
[1770824814042,0.45139271,80.071,80.022,12.19649774]
[1770824814244,0.5,80.069,80.022,12.19649774]
[1770824814547,0.5,80.067,80.02,0.2]
[1770824814745,0.5,80.067,80.021,12.49671961]
[1770824814922,12.48938402,80.068,80.021,12.49671961]
[1770824815123,0.5,80.067,80.021,43.73851863]
[1770824815319,12.48938402,80.068,80.021,12.49671961]
[1770824815523,12.48938402,80.068,80.03,12.81055334]
[1770824815749,36.76,80.067,80.021,12.49671961]
[1770824816045,12.48938402,80.068,80.03,12.81055334]
[1770824816553,0.5,80.067,80.021,43.73851863]
[1770824816725,12.48844818,80.074,80.03,12.81055334]
[1770824817135,0.5,80.073,80.03,12.81055334]
[1770824817649,0.5,80.073,80.024,34.76]
[1770824817855,0.5,80.071,80.024,34.76]
[1770824818030,0.5,80.071,80.02,0.2]
[1770824818425,0.5,80.069,80.02,0.2]
[1770824818837,0.5,80.067,80.02,0.2]
[1770824819121,0.5,80.062,80.02,0.2]
[1770824819452,4.61729252,80.063,79.992,12.5011802]
[1770824819453,4.61729252,80.058,79.992,12.5011802]
[1770824819633,0.5,80.057,79.992,12.5011802]
[1770824819830,4.61729252,80.058,79.98,12.81055334]
[1770824819831,0.5,80.052,79.98,12.81055334]
[1770824820553,0.5,80.046,79.973,12.50422017]
[1770824820758,0.5,80.046,79.971,12.50453289]
[1770824821122,9.9781544,80.027,79.95,12.81055334]
[1770824821425,0.5,80.017,79.94,12.81055334]
[1770824821757,0.5,80.017,79.934,12.51032101]
[1770824821758,0.5,80.005,79.934,12.51032101]
[1770824821920,0.5,80.005,79.92,43.79379379]
[1770824821921,0.5,79.998,79.92,43.79379379]
[1770824822124,36.06,80.003,79.96,12.81055334]
[1770824822339,12.49984375,80.001,79.945,43.78009881]
[1770824822522,12.99984375,80.001,79.96,12.81055334]
[1770824822717,12.99984375,80.001,79.945,43.78009881]
[1770824822718,0.5,80.0,79.95,12.81055334]
[1770824822926,0.5,79.997,79.93,12.88977172]
[1770824823322,0.5,79.992,79.94,12.88977172]
[1770824823529,0.5,79.992,79.903,143.92450844]
[1770824823530,0.5,79.987,79.93,12.88977172]
[1770824823748,0.5,79.987,79.92,12.88977172]
[1770824823926,0.5,79.987,79.93,12.88977172]
[1770824824421,0.5,79.983,79.931,12.51079055]
[1770824824646,0.5,79.983,79.928,34.74]
[1770824824826,0.5,79.983,79.893,50.06679093]
[1770824824827,0.5,79.978,79.91,12.88977172]
[1770824825019,0.5,79.978,79.93,12.88977172]
[1770824825460,0.5,79.978,79.911,34.74]
[1770824825647,0.5,79.978,79.93,12.88977172]
[1770824825827,0.5,79.978,79.922,34.76]
[1770824826155,0.5,79.976,79.922,34.76]
[1770824826739,0.5,79.974,79.923,12.51204284]
[1770824827145,0.5,79.974,79.923,43.79214994]
[1770824827451,0.5,79.974,79.94,12.88977172]
[1770824827626,0.5,79.974,79.933,34.76]
[1770824828238,0.5,79.996,79.95,12.88977172]
[1770824828625,0.5,80.007,79.96,12.88977172]
[1770824828832,49.96668961,80.054,79.99,12.88977172]
[1770824828833,0.5,80.03,79.99,12.88977172]
[1770824831036,0.5,80.028,79.987,12.50200803]
[1770824831743,0.5,80.028,79.98,12.88977172]
[1770824831944,0.5,80.028,79.981,12.50296945]
[1770824832251,43.73414636,80.029,79.977,34.78]
[1770824832252,0.5,80.025,79.977,34.78]
[1770824832659,0.5,80.025,79.98,12.88977172]
[1770824832951,43.73687893,80.024,79.977,34.78]
[1770824833254,43.73687893,80.024,79.962,12.50590096]
[1770824833255,0.5,80.02,79.962,12.50590096]
[1770824833662,0.5,80.02,79.98,12.88977172]
[1770824833830,12.49556127,80.029,79.99,12.88977172]
[1770824834232,0.5,80.028,79.979,34.78]
[1770824834460,0.5,80.028,79.98,12.88977172]
[1770824834659,0.5,80.028,79.99,12.88977172]
[1770824835259,0.5,80.026,79.98,47.66977172]
[1770824835561,0.5,80.026,79.99,12.88977172]
[1770824836140,12.49578267,80.027,79.99,12.88977172]
[1770824836463,49.96577173,80.055,79.98,43.76094023]
[1770824836464,0.5,80.056,80.01,12.88977172]
[1770824836657,0.5,80.056,79.991,34.8]
[1770824836658,36.54,80.064,80.02,12.88977172]
[1770824836835,12.48954001,80.067,80.03,12.88977172]
[1770824837037,0.5,80.076,80.032,12.49500199]
[1770824837349,0.5,80.076,80.032,47.29500199]
[1770824837559,36.54,80.081,80.04,12.88977172]
[1770824837738,12.48665353,80.086,80.05,12.88977172]
[1770824838235,12.48497572,80.097,80.06,12.88977172]
[1770824839074,12.4828361,80.11,80.07,12.88977172]
[1770824839245,12.48194974,80.116,80.09,12.88977172]
[1770824839439,12.48194974,80.116,80.061,78.51666604]
[1770824839440,12.48065498,80.124,80.08,12.88977172]
[1770824839638,0.5,80.123,80.081,34.8]
[1770824839962,0.5,80.144,80.1,12.88977172]
[1770824840459,0.5,80.144,80.11,12.88977172]
[1770824840659,12.47707337,80.147,80.11,12.88977172]
[1770824840966,0.5,80.152,80.12,12.88977172]
[1770824841141,0.5,80.15,80.11,12.88977172]
[1770824841338,0.5,80.15,80.12,12.88977172]
[1770824841955,49.88650819,80.182,80.11,43.6897886]
[1770824841956,12.473805,80.168,80.14,12.88977172]
[1770824842134,12.473805,80.168,80.11,43.6897886]
[1770824842135,0.5,80.167,80.13,12.88977172]
[1770824842338,0.5,80.167,80.128,34.78]
[1770824842559,0.5,80.164,80.101,12.48423864]
[1770824842859,0.5,80.164,80.12,12.88977172]
[1770824843054,4.61729252,80.165,80.101,47.26423864]
[1770824843055,0.5,80.162,80.101,47.26423864]
[1770824843257,0.5,80.162,80.11,12.88977172]
[1770824843557,0.5,80.162,80.13,12.88977172]
[1770824843965,0.5,80.159,80.113,34.76]
[1770824844864,0.5,80.159,80.12,12.88977172]
[1770824845060,0.5,80.154,80.066,31.22424]
[1770824845266,0.5,80.154,80.11,12.88977172]
[1770824845454,12.47536116,80.158,80.12,12.88977172]
[1770824845964,0.5,80.157,80.12,12.88977172]
[1770824846543,12.47567243,80.156,80.121,12.4811223]
[1770824846746,0.5,80.155,80.111,47.24263771]
[1770824847176,0.5,80.155,80.111,34.76]
[1770824847763,0.5,80.153,80.101,12.48423864]
[1770824848171,12.47503956,80.161,80.12,12.88977172]
[1770824848350,0.5,80.16,80.13,12.88977172]
[1770824848541,0.5,80.16,80.121,34.76]
[1770824848542,13.07361049,80.17,80.14,12.88977172]
[1770824848743,0.1,80.17,80.14,12.88977172]
[1770824849253,0.1,80.17,80.134,34.76]
[1770824849459,12.47364941,80.169,80.134,34.76]
[1770824849640,0.5,80.168,80.134,34.76]
[1770824850041,0.5,80.168,80.14,12.88977172]
[1770824850337,0.5,80.168,80.134,34.76]
[1770824850537,0.1,80.17,80.134,34.76]
[1770824850737,0.1,80.17,80.076,49.9520133]
[1770824850738,0.5,80.169,80.111,34.76]
[1770824850978,0.5,80.169,80.12,12.88977172]
[1770824851642,4.61729252,80.168,80.12,12.88977172]
[1770824851944,0.5,80.166,80.11,56.57969807]
[1770824852162,0.5,80.166,80.111,34.76]
[1770824852464,0.5,80.164,80.111,34.76]
[1770824852640,0.5,80.159,80.112,12.48252446]
[1770824852841,0.5,80.159,80.111,34.76]
[1770824853558,0.5,80.159,80.112,12.48252446]
[1770824853869,0.5,80.159,80.12,12.88977172]
[1770824854459,0.5,80.159,80.112,12.48252446]
[1770824854855,0.5,80.154,80.111,34.76]
[1770824855556,0.5,80.154,80.112,12.48252446]
[1770824855858,0.5,80.154,80.111,34.76]
[1770824856062,0.5,80.154,80.111,47.24265082]
[1770824856659,0.5,80.154,80.111,12.48265082]
[1770824856862,4.61729252,80.155,80.11,12.88977172]
[1770824856863,0.5,80.149,80.11,12.88977172]
[1770824857062,36.54,80.165,80.13,12.88977172]
[1770824857063,0.5,80.16,80.13,12.88977172]
[1770824857265,12.47465197,80.163,80.13,47.68977172]
[1770824858369,0.5,80.169,80.131,12.47956471]
[1770824859251,0.5,80.169,80.13,34.8]
[1770824859459,0.5,80.169,80.13,47.27962582]
[1770824859869,0.5,80.169,80.13,34.8]
[1770824860060,0.5,80.164,80.113,34.82]
[1770824860444,0.5,80.161,80.12,12.88977172]
[1770824860671,0.5,80.161,80.114,12.48221284]
[1770824861051,0.5,80.158,80.11,47.30282205]
[1770824862185,0.5,80.158,80.1,12.88977172]
[1770824862186,0.5,80.158,80.095,12.48508746]
[1770824862357,0.5,80.148,80.07,12.88977172]
[1770824862677,0.5,80.148,80.08,12.88977172]
[1770824863676,0.5,80.148,80.076,34.86]
[1770824864285,0.5,80.143,80.076,34.86]
[1770824864577,0.5,80.138,80.077,12.48798031]
[1770824864878,0.5,80.138,80.076,34.86]
[1770824865075,0.5,80.126,80.04,12.88977172]
[1770824865376,0.5,80.119,80.027,43.73523935]
[1770824865556,0.5,80.114,80.04,12.88977172]
[1770824866064,0.5,80.114,80.05,12.88977172]
[1770824866261,4.61729252,80.11,80.05,12.88977172]
[1770824866471,0.5,80.107,80.061,12.49047601]
[1770824866664,4.61729252,80.123,80.061,12.49047601]
[1770824866665,0.5,80.142,80.1,12.88977172]
[1770824866867,0.5,80.142,80.065,9.9781544]
[1770824866868,0.5,80.142,80.11,12.88977172]
[1770824867185,43.66267465,80.16,80.11,12.88977172]
[1770824867186,0.5,80.156,80.11,12.88977172]
[1770824867477,0.5,80.156,80.111,17.46]
[1770824867677,0.5,80.156,80.107,30.04]
[1770824868065,0.5,80.156,80.09,12.88977172]
[1770824868375,0.5,80.156,80.12,12.88977172]
[1770824868560,0.5,80.154,80.116,34.86]
[1770824868982,0.5,80.154,80.112,34.86]
[1770824869774,0.5,80.152,80.113,12.48236865]
[1770824869971,0.5,80.152,80.101,12.48423864]
[1770824870178,0.5,80.149,80.09,12.88977172]
[1770824870362,0.5,80.147,80.1,12.88977172]
[1770824870560,0.5,80.147,80.101,34.88]
[1770824870764,43.66648783,80.153,80.11,12.88977172]
[1770824870962,0.5,80.152,80.11,34.88]
[1770824871176,0.5,80.152,80.11,12.88977172]
[1770824871380,0.5,80.152,80.111,34.88]
[1770824871759,0.5,80.15,80.112,47.36242149]
[1770824873171,0.5,80.147,80.08,12.88977172]
[1770824873373,0.5,80.145,80.081,34.9]
[1770824873977,0.5,80.143,80.082,43.70520215]
[1770824875493,0.5,80.143,80.09,12.88977172]
[1770824876184,0.5,80.141,80.091,12.4857974]
[1770824876388,0.5,80.141,80.091,43.70029091]
[1770824876988,0.5,80.141,80.1,12.88977172]
[1770824877577,12.47785181,80.142,80.1,12.88977172]
[1770824877787,49.25726957,80.146,80.11,12.88977172]
[1770824877987,49.27473865,80.162,80.12,12.88977172]
[1770824878190,0.5,80.159,80.121,12.4811223]
[1770824878389,12.47449962,80.164,80.122,34.92]
[1770824878582,12.47300494,80.174,80.13,12.88977172]
[1770824878894,12.47364941,80.169,80.13,12.88977172]
[1770824879392,0.5,80.181,80.14,12.88977172]
[1770824879789,12.47320114,80.172,80.14,12.88977172]
[1770824879988,0.5,80.181,80.14,12.88977172]
[1770824880190,0.6,80.17,80.141,12.47800751]
[1770824880374,0.1,80.17,80.141,12.47800751]
[1770824880699,0.1,80.17,80.142,34.94]
[1770824880892,0.1,80.17,80.105,5.36086188]
[1770824880893,0.5,80.169,80.131,34.92]
[1770824881475,0.5,80.164,80.131,34.92]
[1770824881682,0.5,80.164,80.101,12.48423864]
[1770824881881,0.5,80.164,80.102,34.94]
[1770824882197,0.5,80.159,80.103,43.6937443]
[1770824882400,0.5,80.159,80.045,49.97129625]
[1770824882401,0.5,80.159,80.099,34.94]
[1770824882705,0.5,80.154,80.079,34.94]
[1770824883285,0.5,80.154,80.08,12.84659262]
[1770824883598,0.5,80.154,80.079,34.94]
[1770824883777,0.5,80.154,80.08,12.84659262]
[1770824884487,4.61729252,80.15,80.081,43.70574792]
[1770824884687,0.5,80.149,80.081,43.70574792]
[1770824885102,0.5,80.149,80.09,12.84659262]
[1770824885400,0.5,80.148,80.1,12.84659262]
[1770824885603,0.5,80.146,80.091,35.0]
[1770824885780,0.5,80.143,80.076,12.48807977]
[1770824885980,36.9,80.142,80.076,12.48807977]
[1770824886293,0.5,80.138,80.076,12.48807977]
[1770824886702,4.61729252,80.134,80.071,12.48891608]
[1770824886883,0.5,80.133,80.06,12.49063202]
[1770824887781,5.36086188,80.123,80.056,34.98]
[1770824888083,5.36086188,80.123,80.02,47.82659262]
[1770824888084,0.5,80.096,80.02,47.82659262]
[1770824888283,0.5,80.086,80.01,31.24609423]
[1770824888526,0.5,80.086,80.011,34.98]
[1770824888703,4.61729252,80.087,80.012,12.49812528]
[1770824888704,4.61729252,80.082,80.012,12.49812528]
[1770824888879,0.5,80.081,80.012,12.49812528]
[1770824889086,0.5,80.076,80.001,12.49975978]
[1770824889391,0.5,80.071,80.001,12.49975978]
[1770824889690,0.5,80.066,80.001,12.49975978]
[1770824889890,0.5,80.064,80.001,12.49975978]
[1770824890100,0.5,80.061,79.992,12.50125012]
[1770824890297,4.61729252,80.057,79.992,12.50125012]
[1770824890490,0.5,80.056,79.992,12.50125012]
[1770824890813,0.5,80.054,80.0,12.84659262]
[1770824890982,0.5,80.054,79.992,43.75437543]
[1770824891184,0.5,80.054,79.992,12.50125012]
[1770824891385,0.5,80.054,79.951,100.06064474]
[1770824891386,0.5,80.046,79.972,12.50437653]
[1770824891580,0.5,80.046,79.973,34.98]
[1770824892411,0.5,80.039,79.973,34.98]
[1770824892614,0.5,80.034,79.973,34.98]
[1770824892914,5.36086188,80.023,79.931,43.78776694]
[1770824893114,0.5,80.011,79.931,12.51079055]
[1770824893293,4.61729252,80.019,79.931,12.51079055]
[1770824893294,0.5,80.006,79.94,12.84659262]
[1770824893491,0.5,80.006,79.95,12.84659262]
[1770824893706,0.5,80.004,79.95,12.84659262]
[1770824894208,0.5,80.004,79.941,35.0]
[1770824894412,0.5,80.004,79.95,12.84659262]
[1770824894614,0.5,79.999,79.942,35.0]
[1770824894987,5.36086188,80.028,79.943,12.5089126]
[1770824894988,0.5,79.994,79.943,12.5089126]
[1770824895290,37.08,79.993,79.942,35.0]
[1770824895511,0.5,79.992,79.942,47.50892098]
[1770824896026,0.5,79.992,79.95,12.84659262]
[1770824896198,12.49969102,80.002,79.97,12.84659262]
[1770824896402,0.5,80.023,79.97,12.84659262]
[1770824896596,0.5,80.027,79.98,12.84659262]
[1770824896788,0.5,80.024,79.97,12.84659262]
[1770824896988,0.5,80.024,79.966,35.02]
[1770824896989,0.5,80.022,79.98,12.84659262]
[1770824897199,0.5,80.022,79.967,12.50515837]
[1770824897403,4.61729252,80.018,79.967,12.50515837]
[1770824897594,4.61729252,80.018,79.93,50.24343501]
[1770824897595,0.5,80.017,79.949,35.02]
[1770824898311,0.5,80.017,79.933,43.78667133]
[1770824898312,0.5,80.008,79.933,43.78667133]
[1770824898705,4.61729252,79.996,79.93,0.2]
[1770824899011,0.5,79.998,79.93,0.2]
[1770824899012,4.61729252,79.983,79.93,0.2]
[1770824899210,0.5,79.977,79.91,12.51393052]
[1770824899409,0.5,79.972,79.916,12.51308799]
[1770824899825,0.5,79.97,79.92,43.99370581]
[1770824900110,0.5,79.967,79.92,0.2]
[1770824900317,0.5,79.967,79.885,31.29497195]
[1770824900700,0.5,79.956,79.88,12.84659262]
[1770824900912,0.5,79.956,79.879,12.51893488]
[1770824901116,4.61729252,79.965,79.879,12.51893488]
[1770824901414,0.5,79.96,79.9,12.84659262]
[1770824901604,0.5,79.955,79.9,12.84659262]
[1770824902112,0.5,79.955,79.88,12.84659262]
[1770824902315,0.5,79.946,79.879,12.51893488]
[1770824903012,0.5,79.941,79.88,12.84659262]
[1770824903312,0.5,79.936,79.881,43.81517506]
[1770824903621,0.5,79.931,79.878,0.2443856]
[1770824903925,0.5,79.942,79.88,12.84659262]
[1770824904122,12.5089126,79.943,79.88,12.84659262]
[1770824904123,0.5,79.937,79.88,12.84659262]
[1770824904420,4.61729252,79.938,79.879,12.51893488]
[1770824904421,0.5,79.935,79.879,12.51893488]
[1770824905295,0.5,79.933,79.879,12.51893488]
[1770824905502,0.5,79.931,79.88,12.84659262]
[1770824906117,0.5,79.931,79.879,43.8162721]
[1770824906422,0.5,79.929,79.879,43.8162721]
[1770824906620,0.5,79.929,79.879,12.51893488]
[1770824906797,0.5,79.926,79.878,0.2443856]
[1770824907423,0.5,79.924,79.879,12.51893488]
[1770824907712,0.5,79.924,79.88,12.84659262]
[1770824908324,50.01029586,79.984,79.89,12.84659262]
[1770824908537,0.5,79.941,79.9,12.84659262]
[1770824908709,0.5,79.939,79.9,12.84659262]
[1770824908911,0.5,79.939,79.882,35.02]
[1770824909117,0.5,79.939,79.89,12.84659262]
[1770824909306,0.5,79.945,79.91,12.51404516]
[1770824909525,0.5,79.943,79.901,12.51548791]
[1770824909835,0.5,79.943,79.894,12.51650433]
[1770824910509,0.5,79.938,79.879,12.51893488]
[1770824910820,0.5,79.938,79.87,12.84659262]
[1770824911039,0.5,79.938,79.863,31.30356547]
[1770824911040,0.5,79.938,79.89,12.84659262]
[1770824911226,0.5,79.938,79.9,12.84659262]
[1770824911531,0.5,79.935,79.89,25.36375343]
[1770824912222,0.5,79.935,79.879,12.51893488]
[1770824912442,0.5,79.93,79.88,12.84659262]
[1770824912727,0.5,79.93,79.872,12.51988395]
[1770824912925,0.5,79.93,79.87,12.84659262]
[1770824913225,0.5,79.93,79.869,12.52035545]
[1770824913432,0.5,79.925,79.86,12.84659262]
[1770824913611,0.5,79.918,79.878,1e-08]
[1770824914231,0.5,79.909,79.878,1e-08]
[1770824915533,0.5,79.904,79.878,1e-08]
[1770824915727,0.5,79.902,79.878,1e-08]
[1770824917616,12.51548791,79.901,79.878,1e-08]
[1770824917821,13.01548791,79.901,79.878,1e-08]
[1770824918617,0.5,79.9,79.878,1e-08]
[1770824919224,12.51548791,79.901,79.878,1e-08]
[1770824919743,0.5,79.924,79.89,12.84659262]
[1770824920033,0.5,79.924,79.878,1e-08]
[1770824920034,0.5,79.922,79.88,12.84659262]
[1770824920216,38.0,79.922,79.89,12.84659262]
[1770824921029,0.5,79.921,79.88,12.84659262]
[1770824921417,0.5,79.921,79.89,12.84659262]
[1770824921737,12.51251251,79.92,79.89,12.84659262]
[1770824921924,13.01251251,79.92,79.89,12.84659262]
[1770824922124,0.5,79.919,79.89,12.84659262]
[1770824923141,0.5,79.919,79.88,12.84659262]
[1770824923441,43.79379379,79.92,79.88,12.84659262]
[1770824923442,0.5,79.917,79.88,12.84659262]
[1770824923647,0.5,79.915,79.88,12.84659262]
[1770824925619,0.5,79.913,79.878,1e-08]
[1770824925820,0.5,79.911,79.878,1e-08]
[1770824926122,0.5,79.908,79.878,1e-08]
[1770824928148,0.5,79.903,79.878,1e-08]
[1770824929237,0.5,79.901,79.878,1e-08]
[1770824930149,37.68,79.902,79.878,1e-08]
[1770824930450,0.5,79.899,79.878,1e-08]
[1770824931125,37.68,79.902,79.88,12.84659262]
[1770824931624,0.5,79.923,79.88,12.84659262]
[1770824931951,0.5,79.918,79.878,1e-08]
[1770824932145,81.53269787,79.922,79.878,1e-08]
[1770824932146,0.5,79.908,79.878,1e-08]
[1770824933336,4.61729252,79.904,79.878,1e-08]
[1770824933544,38.3,79.907,79.878,1e-08]
[1770824933736,0.5,79.906,79.878,1e-08]
[1770824934345,0.5,79.904,79.878,1e-08]
[1770824934927,0.5,79.901,79.878,1e-08]
[1770824935262,0.5,79.896,79.878,1e-08]
[1770824935437,0.5,79.889,79.821,12.52793217]
[1770824935849,9.9781544,79.89,79.81,0.2]
[1770824935850,5.36086188,79.888,79.812,12.52944419]
[1770824936143,5.36086188,79.868,79.8,0.2]
[1770824936352,0.47957379,79.858,79.759,0.2]
[1770824936538,4.61729252,79.828,79.773,6.28196157]
[1770824936741,0.47957379,79.816,79.773,6.28196157]
[1770824936946,0.47957379,79.814,79.773,6.28196157]
[1770824937156,0.47957379,79.806,79.773,1e-08]
[1770824937367,37.92,79.805,79.773,1e-08]
[1770824937570,4.61729252,79.8,79.738,0.47734448]
[1770824937753,37.92,79.805,79.71,17.5]
[1770824937754,0.47957379,79.795,79.741,0.47734448]
[1770824937953,0.47957379,79.79,79.741,0.47734448]
[1770824938148,0.47957379,79.79,79.751,0.47734448]
[1770824938459,12.5304019,79.806,79.773,0.47734448]
[1770824938661,37.92,79.805,79.773,0.47734448]
[1770824939560,38.39957379,79.804,79.76,0.47734448]
[1770824939763,0.47957379,79.803,79.76,0.47734448]
[1770824939961,0.47957379,79.803,79.751,0.47734448]
[1770824940171,0.47957379,79.803,79.761,0.47734448]
[1770824940476,12.53101426,79.802,79.771,0.47734448]
[1770824940956,37.92,79.804,79.771,0.47734448]
[1770824941166,0.5,79.809,79.752,12.53887049]
[1770824941359,4.61729252,79.805,79.752,12.53887049]
[1770824941565,12.52850234,79.818,79.752,12.53887049]
[1770824941566,0.5,79.803,79.752,12.53887049]
[1770824941767,0.5,79.803,79.76,12.84659262]
[1770824941975,37.94,79.802,79.76,12.84659262]
[1770824942157,37.94,79.802,79.77,12.84659262]
[1770824942477,13.02850234,79.818,79.77,12.84659262]
[1770824942478,50.96850234,79.818,79.781,12.53431268]
[1770824942682,0.5,79.817,79.781,12.53431268]
[1770824943180,0.5,79.839,79.8,12.84659262]
[1770824943479,50.48536386,79.838,79.8,12.84659262]
[1770824943856,0.5,79.874,79.82,12.84659262]
[1770824944069,0.5,79.874,79.781,211.43345174]
[1770824944070,12.51971855,79.874,79.84,12.84659262]
[1770824944275,13.01971855,79.874,79.83,12.84659262]
[1770824944580,0.5,79.87,79.8,12.84659262]
[1770824944782,4.61729252,79.871,79.8,12.84659262]
[1770824944783,0.5,79.865,79.8,12.84659262]
[1770824945079,0.5,79.865,79.81,12.93276689]
[1770824945278,0.5,79.877,79.83,12.93276689]
[1770824945488,12.51784674,79.886,79.85,12.93276689]
[1770824945692,12.51752453,79.888,79.85,12.93276689]
[1770824946056,0.5,79.913,79.87,12.93276689]
[1770824946356,0.5,79.908,79.86,12.93276689]
[1770824946586,0.5,79.903,79.851,12.52332469]
[1770824946964,4.61729252,79.904,79.83,12.93276689]
[1770824946965,0.5,79.898,79.83,12.93276689]
[1770824947171,4.61729252,79.904,79.83,12.93276689]
[1770824947172,0.5,79.893,79.83,12.93276689]
[1770824947467,0.5,79.893,79.811,4.61729252]
[1770824947468,0.5,79.888,79.85,12.93276689]
[1770824947773,0.5,79.888,79.808,194.21611867]
[1770824947774,4.61729252,79.904,79.86,12.93276689]
[1770824947957,0.5,79.902,79.86,12.93276689]
[1770824948159,0.5,79.9,79.85,12.93276689]
[1770824948361,0.5,79.9,79.86,12.93276689]
[1770824948668,0.5,79.898,79.841,12.52489322]
[1770824949058,0.5,79.895,79.831,12.52646215]
[1770824949265,0.5,79.89,79.807,31.32529609]
[1770824949461,0.5,79.885,79.81,12.93276689]
[1770824949680,0.5,79.885,79.83,12.93276689]
[1770824949974,0.5,79.885,79.82,12.93276689]
[1770824950361,0.5,79.885,79.84,12.93276689]
[1770824950679,0.5,79.882,79.83,25.45938595]